fUSD/lending_fUSD_20260401
["ID","MTS","AMOUNT","RATE_DAILY","PERIOD"]
[419220505,1775023861100,-618.03329484,0.00035352,120]
[419220506,1775023861110,-426.0,0.00035373,30]
[419220507,1775023861119,-153.0,0.00035373,30]
[419220508,1775023861129,-879.0,0.00035373,30]
[419220509,1775023861138,-7730.48,0.000354,30]
[419220510,1775023861148,-993.10976,0.000354,30]
[419220511,1775023861158,-150.0,0.00035403,50]
[419220512,1775023861167,-1338.0,0.00035408,30]
[419220513,1775023861177,-4385.0,0.00035408,30]
[419220514,1775023861187,-1219.0,0.00035408,30]
[419220515,1775023861197,-498.0,0.00035408,30]
[419220516,1775023861206,-151.0,0.00035411,5]
[419220517,1775023861216,-150.0,0.00035432,7]
[419220518,1775023861225,-2000.0,0.000355,7]
[419220519,1775023861237,-1014.55,0.00035543,120]
[419220520,1775023861248,-621.0,0.00035582,2]
[419220521,1775023861258,-1045.0,0.00035582,2]
[419220522,1775023861267,-1346.0,0.00035582,2]
[419220523,1775023861278,-1263.0,0.00035582,2]
[419220524,1775023861288,-150.0,0.00035582,2]
[419220525,1775023861298,-1216.0,0.00035582,2]
[419220526,1775023861307,-925.0,0.00035582,2]
[419220527,1775023861316,-6016.0,0.00035582,2]
[419220528,1775023861326,-415.0,0.00035582,2]
[419220529,1775023861336,-308.96526049,0.00035589,120]
[419220530,1775023861346,-993.10976,0.000356,30]
[419220531,1775023861356,-169459.83731012,0.0003561,2]
[419220532,1775023861365,-4473.76194692,0.0003561,2]
[419220533,1775023861375,-350.0,0.00035616,120]
[419220534,1775023861384,-236.26,0.00035616,2]
[419220535,1775023861394,-1000.0,0.00035616,10]
[419220536,1775023861404,-1000.0,0.00035616,10]
[419220537,1775023861414,-1000.0,0.00035616,10]
[419220538,1775023861423,-1000.0,0.00035616,10]
[419220539,1775023861433,-1000.0,0.00035616,10]
[419220540,1775023861443,-1000.0,0.00035616,10]
[419220541,1775023861452,-1000.0,0.00035616,10]
[419220542,1775023861462,-1000.0,0.00035616,10]
[419220543,1775023861471,-1000.0,0.00035616,10]
[419220544,1775023861482,-1000.0,0.00035616,10]
[419220545,1775023861491,-1000.0,0.00035616,10]
[419220546,1775023861501,-1000.0,0.00035616,10]
[419220547,1775023861511,-1000.0,0.00035616,10]
[419220548,1775023861520,-1000.0,0.00035616,10]
[419220549,1775023861531,-1000.0,0.00035616,10]
[419220550,1775023861541,-1000.0,0.00035616,10]
[419220551,1775023861551,-1000.0,0.00035616,10]
[419220552,1775023861560,-318.0,0.00035616,10]
[419220553,1775023861570,-326.89199663,0.00035616,30]
[419220554,1775023861579,-862.716142,0.00035616,7]
[419220555,1775023861588,-862.716142,0.00035616,7]
[419220556,1775023861598,-862.716142,0.00035616,7]
[419220557,1775023861607,-862.716142,0.00035616,7]
[419220558,1775023861616,-862.716142,0.00035616,7]
[419220559,1775023861625,-862.716142,0.00035616,7]
[419220560,1775023861634,-862.716142,0.00035616,7]
[419220561,1775023861643,-862.716142,0.00035616,7]
[419220562,1775023861652,-862.716142,0.00035616,7]
[419220563,1775023861662,-862.716142,0.00035616,7]
[419220564,1775023861671,-862.716142,0.00035616,7]
[419220565,1775023861680,-862.716142,0.00035616,7]
[419220566,1775023861689,-150.0,0.00035686,50]
[419220567,1775023861698,-211.16,0.00035726,50]
[419220568,1775023861708,-150.0,0.00035795,50]
[419220569,1775023861718,-993.10976,0.000358,30]
[419220570,1775023861727,-2968.75711,0.00035828,7]
[419220571,1775023861738,-2968.75711,0.00035828,7]
[419220572,1775023861748,-2968.75711,0.00035828,7]
[419220573,1775023861757,-2968.75711,0.00035828,7]
[419220574,1775023861766,-196.226046,0.00035828,7]
[419220575,1775023861775,-196.226046,0.00035828,7]
[419220576,1775023861785,-196.226046,0.00035828,7]
[419220577,1775023861794,-196.226046,0.00035828,7]
[419220578,1775023861803,-151.0,0.00035828,7]
[419220579,1775023861813,-151.0,0.00035828,7]
[419220580,1775023861822,-151.0,0.00035828,7]
[419220581,1775023861832,-342.803973,0.00035828,7]
[419220582,1775023861841,-151.0,0.00035828,7]
[419220583,1775023861851,-342.803973,0.00035828,7]
[419220584,1775023861860,-151.0,0.00035828,7]
[419220585,1775023861869,-342.803973,0.00035828,7]
[419220586,1775023861878,-271.074529,0.00035828,7]
[419220587,1775023861888,-342.803973,0.00035828,7]
[419220588,1775023861898,-3671.677389,0.00035828,7]
[419220589,1775023861907,-3671.677389,0.00035828,7]
[419220590,1775023861916,-3671.677389,0.00035828,7]
[419220591,1775023861925,-3671.677389,0.00035828,7]
[419220592,1775023861935,-511.966398,0.00035828,7]
[419220593,1775023861944,-511.966398,0.00035828,7]
[419220594,1775023861953,-511.966398,0.00035828,7]
[419220595,1775023861962,-511.966398,0.00035828,7]
[419220596,1775023861971,-862.716142,0.00035828,7]
[419220597,1775023861982,-862.716142,0.00035828,7]
[419220598,1775023861991,-862.716142,0.00035828,7]
[419220599,1775023861999,-862.716142,0.00035828,7]
[419220600,1775023862008,-500.0,0.00035828,2]
[419220601,1775023862101,-500.0,0.00035828,2]
[419220602,1775023862111,-370.0,0.00035828,2]
[419220603,1775023862121,-200.0,0.00035828,2]
[419220604,1775023862130,-200.0,0.00035828,2]
[419220605,1775023862140,-200.0,0.00035828,2]
[419220606,1775023862150,-200.0,0.00035828,2]
[419220607,1775023862160,-200.0,0.00035828,2]
[419220608,1775023862170,-200.0,0.00035828,2]
[419220609,1775023862180,-200.0,0.00035828,2]
[419220610,1775023862190,-200.0,0.00035828,2]
[419220611,1775023862199,-200.0,0.00035828,2]
[419220612,1775023862208,-200.0,0.00035828,2]
[419220613,1775023862218,-200.0,0.00035828,2]
[419220614,1775023862228,-200.0,0.00035828,2]
[419220615,1775023862238,-200.0,0.00035828,2]
[419220616,1775023862247,-200.0,0.00035828,2]
[419220617,1775023862256,-200.0,0.00035828,2]
[419220618,1775023862265,-200.0,0.00035828,2]
[419220619,1775023862274,-200.0,0.00035828,2]
[419220620,1775023862283,-200.0,0.00035828,2]
[419220621,1775023862292,-200.0,0.00035828,2]
[419220622,1775023862300,-200.0,0.00035828,2]
[419220623,1775023862309,-200.0,0.00035828,2]
[419220624,1775023862319,-200.0,0.00035828,2]
[419220625,1775023862328,-200.0,0.00035828,2]
[419220626,1775023862338,-200.0,0.00035828,2]
[419220627,1775023862348,-500.0,0.00035828,2]
[419220628,1775023862359,-500.0,0.00035828,2]
[419220629,1775023862368,-500.0,0.00035828,2]
[419220630,1775023862377,-500.0,0.00035828,2]
[419220631,1775023862387,-500.0,0.00035828,2]
[419220632,1775023862396,-500.0,0.00035828,2]
[419220633,1775023862405,-500.0,0.00035828,2]
[419220634,1775023862414,-500.0,0.00035828,2]
[419220635,1775023862423,-500.0,0.00035828,2]
[419220636,1775023862432,-500.0,0.00035828,2]
[419220637,1775023862442,-500.0,0.00035828,2]
[419220638,1775023862453,-500.0,0.00035828,2]
[419220639,1775023862463,-500.0,0.00035828,2]
[419220640,1775023862472,-500.0,0.00035828,2]
[419220641,1775023862482,-500.0,0.00035828,2]
[419220642,1775023862491,-200.0,0.00035828,2]
[419220643,1775023862500,-200.0,0.00035828,2]
[419220644,1775023862510,-200.0,0.00035828,2]
[419220645,1775023862519,-200.0,0.00035828,2]
[419220646,1775023862528,-200.0,0.00035828,2]
[419220647,1775023862537,-200.0,0.00035828,2]
[419220648,1775023862546,-200.0,0.00035828,2]
[419220649,1775023862556,-200.0,0.00035828,2]
[419220650,1775023862566,-200.0,0.00035828,2]
[419220651,1775023862575,-200.0,0.00035828,2]
[419220652,1775023862584,-200.0,0.00035828,2]
[419220653,1775023862593,-200.0,0.00035828,2]
[419220654,1775023862602,-276.0,0.00035828,2]
[419220655,1775023862612,-500.0,0.00035828,2]
[419220656,1775023862621,-500.0,0.00035828,2]
[419220657,1775023862630,-500.0,0.00035828,2]
[419220658,1775023862639,-500.0,0.00035828,2]
[419220659,1775023862650,-500.0,0.00035828,2]
[419220660,1775023862660,-500.0,0.00035828,2]
[419220661,1775023862670,-500.0,0.00035828,2]
[419220662,1775023862681,-500.0,0.00035828,2]
[419220663,1775023862690,-500.0,0.00035828,2]
[419220664,1775023862700,-500.0,0.00035828,2]
[419220665,1775023862709,-500.0,0.00035828,2]
[419220666,1775023862718,-500.0,0.00035828,2]
[419220667,1775023862729,-500.0,0.00035828,2]
[419220668,1775023862740,-500.0,0.00035828,2]
[419220669,1775023862749,-500.0,0.00035828,2]
[419220670,1775023862758,-500.0,0.00035828,2]
[419220671,1775023862767,-500.0,0.00035828,2]
[419220672,1775023862776,-500.0,0.00035828,2]
[419220673,1775023862785,-500.0,0.00035828,2]
[419220674,1775023862794,-500.0,0.00035828,2]
[419220675,1775023862803,-800.0,0.00035828,13]
[419220676,1775023862812,-800.0,0.00035828,13]
[419220677,1775023862821,-800.0,0.00035828,13]
[419220678,1775023862831,-800.0,0.00035828,13]
[419220679,1775023862840,-800.0,0.00035828,13]
[419220680,1775023862851,-800.0,0.00035828,13]
[419220681,1775023862861,-800.0,0.00035828,13]
[419220682,1775023862871,-800.0,0.00035828,13]
[419220683,1775023862880,-800.0,0.00035828,13]
[419220684,1775023862889,-800.0,0.00035828,13]
[419220685,1775023862898,-800.0,0.00035828,13]
[419220686,1775023862908,-800.0,0.00035828,13]
[419220687,1775023862917,-800.0,0.00035828,13]
[419220688,1775023862928,-800.0,0.00035828,13]
[419220689,1775023862938,-800.0,0.00035828,13]
[419220690,1775023862947,-800.0,0.00035828,13]
[419220691,1775023862957,-800.0,0.00035828,13]
[419220692,1775023862966,-800.0,0.00035828,13]
[419220693,1775023862975,-800.0,0.00035828,13]
[419220694,1775023862985,-800.0,0.00035828,13]
[419220695,1775023862994,-800.0,0.00035828,13]
[419220696,1775023863003,-800.0,0.00035828,13]
[419220697,1775023863013,-800.0,0.00035828,13]
[419220698,1775023863022,-800.0,0.00035828,13]
[419220699,1775023863031,-800.0,0.00035828,13]
[419220700,1775023863042,-800.0,0.00035828,13]
[419220701,1775023863052,-800.0,0.00035828,13]
[419220702,1775023863062,-800.0,0.00035828,13]
[419220703,1775023863071,-800.0,0.00035828,13]
[419220704,1775023863080,-800.0,0.00035828,13]
[419220705,1775023863090,-800.0,0.00035828,13]
[419220706,1775023863099,-800.0,0.00035828,13]
[419220707,1775023863107,-800.0,0.00035828,13]
[419220708,1775023863116,-800.0,0.00035828,13]
[419220709,1775023863126,-800.0,0.00035828,13]
[419220710,1775023863135,-800.0,0.00035828,13]
[419220711,1775023863144,-800.0,0.00035828,13]
[419220712,1775023863153,-471.0,0.00035828,13]
[419220713,1775023863162,-800.0,0.00035828,13]
[419220714,1775023863171,-800.0,0.00035828,13]
[419220715,1775023863180,-800.0,0.00035828,13]
[419220716,1775023863189,-800.0,0.00035828,13]
[419220717,1775023863198,-800.0,0.00035828,13]
[419220718,1775023863207,-800.0,0.00035828,13]
[419220719,1775023863215,-800.0,0.00035828,13]
[419220720,1775023863225,-800.0,0.00035828,13]
[419220721,1775023863235,-800.0,0.00035828,13]
[419220722,1775023863244,-800.0,0.00035828,13]
[419220723,1775023863253,-800.0,0.00035828,13]
[419220724,1775023863262,-800.0,0.00035828,13]
[419220725,1775023863271,-800.0,0.00035828,13]
[419220726,1775023863281,-800.0,0.00035828,13]
[419220727,1775023863290,-800.0,0.00035828,13]
[419220728,1775023863299,-800.0,0.00035828,13]
[419220729,1775023863308,-800.0,0.00035828,13]
[419220730,1775023863317,-800.0,0.00035828,13]
[419220731,1775023863327,-800.0,0.00035828,13]
[419220732,1775023863336,-800.0,0.00035828,13]
[419220733,1775023863345,-800.0,0.00035828,13]
[419220734,1775023863354,-800.0,0.00035828,13]
[419220735,1775023863364,-800.0,0.00035828,13]
[419220736,1775023863374,-800.0,0.00035828,13]
[419220737,1775023863383,-800.0,0.00035828,13]
[419220738,1775023863392,-800.0,0.00035828,13]
[419220739,1775023863401,-800.0,0.00035828,13]
[419220740,1775023863411,-800.0,0.00035828,13]
[419220741,1775023863420,-800.0,0.00035828,13]
[419220742,1775023863429,-800.0,0.00035828,13]
[419220743,1775023863439,-800.0,0.00035828,13]
[419220744,1775023863448,-800.0,0.00035828,13]
[419220745,1775023863457,-800.0,0.00035828,13]
[419220746,1775023863467,-800.0,0.00035828,13]
[419220747,1775023863477,-800.0,0.00035828,13]
[419220748,1775023863487,-800.0,0.00035828,13]
[419220749,1775023863497,-800.0,0.00035828,13]
[419220750,1775023863506,-800.0,0.00035828,13]
[419220751,1775023863516,-800.0,0.00035828,13]
[419220752,1775023863527,-800.0,0.00035828,13]
[419220753,1775023863537,-800.0,0.00035828,13]
[419220754,1775023863546,-800.0,0.00035828,13]
[419220755,1775023863556,-800.0,0.00035828,13]
[419220756,1775023863566,-800.0,0.00035828,13]
[419220757,1775023863575,-800.0,0.00035828,13]
[419220758,1775023863586,-800.0,0.00035828,13]
[419220759,1775023863595,-800.0,0.00035828,13]
[419220760,1775023863604,-800.0,0.00035828,13]
[419220761,1775023863615,-800.0,0.00035828,13]
[419220762,1775023863624,-800.0,0.00035828,13]
[419220763,1775023863633,-800.0,0.00035828,13]
[419220764,1775023863643,-800.0,0.00035828,13]
[419220765,1775023863652,-800.0,0.00035828,13]
[419220766,1775023863661,-800.0,0.00035828,13]
[419220767,1775023863670,-500.0,0.00035828,2]
[419220768,1775023863680,-500.0,0.00035828,2]
[419220769,1775023863690,-500.0,0.00035828,2]
[419220770,1775023863699,-500.0,0.00035828,2]
[419220771,1775023863708,-500.0,0.00035828,2]
[419220772,1775023863718,-500.0,0.00035828,2]
[419220773,1775023863727,-500.0,0.00035828,2]
[419220774,1775023863737,-500.0,0.00035828,2]
[419220775,1775023863746,-500.0,0.00035828,2]
[419220776,1775023863756,-500.0,0.00035828,2]
[419220777,1775023863765,-500.0,0.00035828,2]
[419220778,1775023863774,-489.0,0.00035828,2]
[419220779,1775023863783,-800.0,0.00035828,13]
[419220780,1775023863791,-800.0,0.00035828,13]
[419220781,1775023863801,-800.0,0.00035828,13]
[419220782,1775023863810,-800.0,0.00035828,13]
[419220783,1775023863819,-800.0,0.00035828,13]
[419220784,1775023863828,-685.0,0.00035828,13]
[419220785,1775023863837,-500.0,0.00035828,2]
[419220786,1775023863846,-500.0,0.00035828,2]
[419220787,1775023863855,-500.0,0.00035828,2]
[419220788,1775023863865,-1014.55,0.0003587,120]
[419220789,1775023863874,-224.90834083,0.00035933,60]
[419220790,1775023863884,-162.0,0.00035942,11]
[419220791,1775023863893,-371.54669786,0.00035964,8]
[419220792,1775023863903,-150.0,0.00036,120]
[419220793,1775023863912,-1530.51664844,0.00036,120]
[419220794,1775023863921,-200.0,0.00036,3]
[419220795,1775023863931,-1653.7957386,0.00036,10]
[419220796,1775023863940,-7126.81,0.00036,30]
[419220797,1775023863950,-961.44989884,0.00036,2]
[419220798,1775023863959,-451.13358481,0.00036,120]
[419220799,1775023863968,-27980.39,0.00036,2]
[419220800,1775023863978,-993.10976,0.00036,30]
[419220801,1775023863988,-3310.3658,0.00036,7]
[419220802,1775023863997,-1001.0,0.00036,7]
[419220803,1775023864007,-205.572827,0.00036,12]
[419220804,1775023864016,-5000.0,0.00036001,10]
[419220805,1775023864026,-5000.0,0.00036003,10]
[419220806,1775023864035,-282.94727502,0.00036005,120]
[419220807,1775023864046,-5000.0,0.0003601,10]
[419220808,1775023864056,-152.0,0.00036027,7]
[419220809,1775023864066,-5000.0,0.00036029,10]
[419220810,1775023864076,-5000.0,0.0003603,10]
[419220811,1775023864087,-1350.0,0.00036045,2]
[419220812,1775023864096,-1350.0,0.00036045,2]
[419220813,1775023864106,-1204.0,0.00036045,2]
[419220814,1775023864117,-5000.0,0.00036111,10]
[419220815,1775023864127,-657.0,0.00036111,5]
[419220816,1775023864137,-3608.14,0.0003614,10]
[419220817,1775023864148,-233.66,0.00036144,10]
[419220818,1775023864158,-5000.0,0.00036154,10]
[419220819,1775023864168,-350.0,0.00036164,120]
[419220820,1775023864177,-1714.1,0.00036185,10]
[419220821,1775023864187,-1014.55,0.00036196,120]
[419220822,1775023864197,-993.10976,0.000362,30]
[419220823,1775023864206,-16990.5287,0.000362,97]
[419220824,1775023864215,-5000.0,0.00036269,10]
[419220825,1775023864224,-613.56,0.00036273,10]
[419220826,1775023864236,-150.0,0.00036299,2]
[419220827,1775023864246,-150.0,0.00036299,2]
[419220828,1775023864255,-150.0,0.00036299,2]
[419220829,1775023864265,-5000.0,0.00036308,10]
[419220830,1775023864274,-5000.0,0.00036309,10]
[419220831,1775023864285,-5000.0,0.00036317,10]
[419220832,1775023864295,-5000.0,0.00036327,10]
[419220833,1775023864306,-1300.0,0.00036353,2]
[419220834,1775023864316,-1300.0,0.00036353,2]
[419220835,1775023864325,-1298.0,0.00036353,2]
[419220836,1775023864334,-426.0,0.00036373,30]
[419220837,1775023864344,-153.0,0.00036373,30]
[419220838,1775023864353,-879.0,0.00036373,30]
[419220839,1775023864363,-993.10976,0.000364,30]
[419220840,1775023864373,-1338.0,0.00036408,30]
[419220841,1775023864383,-4385.0,0.00036408,30]
[419220842,1775023864393,-1219.0,0.00036408,30]
[419220843,1775023864402,-498.0,0.00036408,30]
[419220844,1775023864412,-211.16,0.00036409,50]
[419220845,1775023864422,-151.0,0.00036411,5]
[419220846,1775023864431,-5000.0,0.00036412,10]
[419220847,1775023864441,-150.0,0.0003643,2]
[419220848,1775023864450,-1988.12723973,0.00036443,2]
[419220849,1775023864459,-5000.0,0.00036449,10]
[419220850,1775023864469,-5000.0,0.00036486,10]
[419220851,1775023864479,-500.0,0.000365,120]
[419220852,1775023864491,-5000.0,0.0003651,10]
[419220853,1775023864500,-1014.55,0.00036522,120]
[419220854,1775023864509,-374.4,0.00036543,10]
[419220855,1775023864518,-5000.0,0.00036555,10]
[419220856,1775023864528,-5000.0,0.00036567,10]
[419220857,1775023864538,-1121.17,0.00036571,10]
[419220858,1775023864548,-993.10976,0.000366,30]
[419220859,1775023864557,-150.0,0.00036642,50]
[419220860,1775023864566,-906.4,0.0003665,10]
[419220861,1775023864575,-676.62,0.00036661,10]
[419220862,1775023864585,-5000.0,0.00036664,10]
[419220863,1775023864595,-363.51560483,0.00036667,30]
[419220864,1775023864604,-1597.75,0.0003668,10]
[419220865,1775023864614,-500.0,0.0003669,120]
[419220866,1775023864623,-322.93,0.000367,20]
[419220867,1775023864633,-1380.0,0.000367,2]
[419220868,1775023864642,-5000.0,0.00036703,10]
[419220869,1775023864651,-358.32,0.00036712,10]
[419220870,1775023864660,-350.0,0.00036712,120]
[419220871,1775023864669,-834.51175609,0.0003672,8]
[419220872,1775023864679,-5000.0,0.00036753,10]
[419220873,1775023864688,-1626.80485642,0.000368,2]
[419220874,1775023864698,-993.10976,0.000368,30]
[419220875,1775023864708,-1000.0,0.00036816,2]
[419220876,1775023864720,-1000.0,0.00036816,2]
[419220877,1775023864730,-1000.0,0.00036816,2]
[419220878,1775023864741,-1000.0,0.00036816,2]
[419220879,1775023864751,-1000.0,0.00036816,2]
[419220880,1775023864760,-1000.0,0.0003683,2]
[419220881,1775023864770,-1000.0,0.0003683,2]
[419220882,1775023864779,-1000.0,0.0003683,2]
[419220883,1775023864789,-1000.0,0.0003683,2]
[419220884,1775023864799,-1000.0,0.0003683,2]
[419220885,1775023864808,-1014.55,0.00036848,120]
[419220886,1775023864818,-150.0,0.00036893,30]
[419220887,1775023864828,-523.91,0.00036893,30]
[419220888,1775023864839,-150.0,0.00036893,30]
[419220889,1775023864849,-1750.69,0.00036893,30]
[419220890,1775023864859,-150.0,0.00036893,30]
[419220891,1775023864867,-1812.88801621,0.000369,120]
[419220892,1775023864876,-5000.0,0.00036908,10]
[419220893,1775023864886,-14265.94341701,0.0003691,2]
[419220894,1775023864895,-151.0,0.00036933,60]
[419220895,1775023864904,-2500.0,0.00036947,10]
[419220896,1775023864914,-5000.0,0.00036948,10]
[419220897,1775023864924,-5000.0,0.00036962,10]
[419220898,1775023864934,-150.0,0.00036986,22]
[419220899,1775023864944,-365.0,0.00037,2]
[419220900,1775023864954,-167.3305769,0.00037,2]
[419220901,1775023864963,-1000.80020852,0.00037,2]
[419220902,1775023864972,-4500.0,0.00037,2]
[419220903,1775023864981,-27980.39,0.00037,2]
[419220904,1775023864992,-993.10976,0.00037,30]
[419220905,1775023865002,-162.038273,0.00037,7]
[419220906,1775023865012,-151.0,0.00037,7]
[419220907,1775023865021,-250.860871,0.00037,7]
[419220908,1775023865030,-1001.0,0.00037,7]
[419220909,1775023865039,-825.0,0.00037065,90]
[419220910,1775023865048,-211.16,0.00037091,50]
[419220911,1775023865058,-2000.0,0.000371,7]
[419220912,1775023865067,-1300.0,0.00037165,2]
[419220913,1775023865077,-1300.0,0.00037165,2]
[419220914,1775023865086,-1242.0,0.00037165,2]
[419220915,1775023865096,-150.0,0.00037172,50]
[419220916,1775023865106,-1014.55,0.00037174,120]
[419220917,1775023865115,-152.0,0.00037182,8]
[419220918,1775023865124,-505.0,0.00037191,22]
[419220919,1775023865134,-993.10976,0.000372,30]
[419220920,1775023865143,-150.0,0.00037225,50]
[419220921,1775023865152,-350.0,0.0003726,120]
[419220922,1775023865161,-204.08714195,0.0003726,14]
[419220923,1775023865170,-250.0,0.0003727,44]
[419220924,1775023865179,-234.08,0.000373,20]
[419220925,1775023865188,-205.74,0.000373,20]
[419220926,1775023865198,-426.0,0.00037373,30]
[419220927,1775023865207,-153.0,0.00037373,30]
[419220928,1775023865216,-879.0,0.00037373,30]
[419220929,1775023865225,-322.93,0.000374,10]
[419220930,1775023865235,-993.10976,0.000374,30]
[419220931,1775023865244,-1338.0,0.00037408,30]
[419220932,1775023865253,-4385.0,0.00037408,30]
[419220933,1775023865262,-1219.0,0.00037408,30]
[419220934,1775023865271,-498.0,0.00037408,30]
[419220935,1775023865281,-204.24643178,0.00037411,5]
[419220936,1775023865290,-250.0,0.00037452,7]
[419220937,1775023865299,-250.0,0.00037452,7]
[419220938,1775023865308,-250.0,0.00037452,7]
[419220939,1775023865318,-250.0,0.00037452,7]
[419220940,1775023865327,-2809.0,0.00037467,11]
[419220941,1775023865336,-1014.55,0.000375,120]
[419220942,1775023865345,-1000.0,0.000375,120]
[419220943,1775023865354,-150.0,0.00037598,50]
[419220944,1775023865363,-993.10976,0.000376,30]
[419220945,1775023865372,-21793.0615,0.000376,102]
[419220946,1775023865381,-425.0,0.00037618,2]
[419220947,1775023865390,-569.25355257,0.00037723,2]
[419220948,1775023865399,-425.0,0.00037741,2]
[419220949,1775023865409,-211.16,0.00037774,50]
[419220950,1775023865417,-993.10976,0.000378,30]
[419220951,1775023865426,-350.0,0.00037808,120]
[419220952,1775023865436,-1307.60457356,0.000379,120]
[419220953,1775023865444,-500.0,0.00037918,2]
[419220954,1775023865453,-151.0,0.00037933,60]
[419220955,1775023865462,-150.0,0.00037993,50]
[419220956,1775023865471,-1156.41848616,0.00037999,30]
[419220957,1775023865480,-150.0,0.00038,17]
[419220958,1775023865489,-200.0,0.00038,3]
[419220959,1775023865498,-7126.81,0.00038,30]
[419220960,1775023865507,-27980.39,0.00038,2]
[419220961,1775023865515,-10141.87,0.00038,30]
[419220962,1775023865525,-150.0,0.00038,120]
[419220963,1775023865535,-151.0,0.00038,7]
[419220964,1775023865544,-151.0,0.00038,7]
[419220965,1775023865554,-151.0,0.00038,7]
[419220966,1775023865562,-741.356026,0.00038,7]
[419220967,1775023865572,-741.356026,0.00038,7]
[419220968,1775023865581,-1001.0,0.00038,7]
[419220969,1775023865591,-741.356026,0.00038,7]
[419220970,1775023865600,-741.356026,0.00038,7]
[419220971,1775023865610,-200.0,0.00038,15]
[419220972,1775023865618,-433.72,0.00038014,120]
[419220973,1775023865630,-1000.0,0.0003807,2]
[419220974,1775023865640,-500.0,0.0003807,2]
[419220975,1775023865649,-69533.29452289,0.000381,33]
[419220976,1775023865658,-1686.53205,0.000381,120]
[419220977,1775023865668,-157.270965,0.000381,7]
[419220978,1775023865677,-157.270965,0.000381,7]
[419220979,1775023865687,-157.270965,0.000381,7]
[419220980,1775023865696,-157.270965,0.000381,7]
[419220981,1775023865705,-151.0,0.000381,7]
[419220982,1775023865715,-151.0,0.000381,7]
[419220983,1775023865724,-177.300024,0.000381,7]
[419220984,1775023865736,-177.300024,0.000381,7]
[419220985,1775023865745,-177.300024,0.000381,7]
[419220986,1775023865755,-177.300024,0.000381,7]
[419220987,1775023865766,-993.10976,0.000382,30]
[419220988,1775023865776,-150.0,0.00038252,2]
[419220989,1775023865786,-263.58608099,0.000383,30]
[419220990,1775023865796,-1918.7605441,0.00038329,120]
[419220991,1775023865806,-2684.5,0.00038329,120]
[419220992,1775023865817,-2019.01,0.00038329,120]
[419220993,1775023865826,-470.351,0.00038329,120]
[419220994,1775023865835,-201.579,0.00038329,120]
[419220995,1775023865844,-152.0,0.00038336,9]
[419220996,1775023865854,-350.0,0.00038356,120]
[419220997,1775023865864,-461.49123906,0.00038356,7]
[419220998,1775023865875,-426.0,0.00038373,30]
[419220999,1775023865884,-153.0,0.00038373,30]
[419221000,1775023865893,-879.0,0.00038373,30]
[419221001,1775023865904,-280.0,0.0003838,5]
[419221002,1775023865915,-993.10976,0.000384,30]
[419221003,1775023865924,-1338.0,0.00038408,30]
[419221004,1775023865934,-4385.0,0.00038408,30]